bitfinex/quotes_ETHUSD_20250129
["timestamp","ask_amount","ask_price","bid_price","bid_amount"]
[1738156941156,3.22452,3101.3,3100.9,0.07323437]
[1738156942054,3.22427,3101.5,3100.9,0.07323437]
[1738156942262,3.22427,3101.5,3100.9,3.29808437]
[1738156942462,3.22438,3101.4,3100.9,0.07323437]
[1738156942628,3.26468709,3101.4,3100.9,0.07323437]
[1738156943037,0.57660684,3101.4,3100.9,0.07323437]
[1738156943359,3.22476,3101.0,3100.3,0.8277]
[1738156943559,3.22506,3100.8,3100.3,0.8277]
[1738156944263,3.22476,3101.0,3100.4,3.22538]
[1738156944563,3.2249,3100.9,3100.3,4.05311]
[1738156944731,3.22476,3101.0,3100.3,4.05311]
[1738156944930,3.22499,3100.8,3100.3,4.781737]
[1738156945330,3.22527,3100.6,3099.9,4.04216]
[1738156945563,3.22543,3100.4,3099.9,0.8163]
[1738156945876,0.8098,3101.1,3099.7,3.22608]
[1738156945877,3.22449,3101.3,3100.7,3.22506]
[1738156946078,3.22469,3101.1,3100.5,0.83257657]
[1738156946278,3.22447,3101.3,3100.7,3.22506]
[1738156946486,3.22447,3101.3,3100.6,3.22515]
[1738156946622,3.22465,3101.2,3100.6,3.22515]
[1738156947129,3.22476,3101.0,3100.5,0.8163]
[1738156947369,3.22465,3101.2,3100.5,1.220465]
[1738156947573,3.0,3101.8,3100.5,1.220465]
[1738156947574,3.22435,3101.4,3100.7,3.225]
[1738156947882,3.87379959,3101.6,3100.8,0.01627914]
[1738156948228,3.22419,3101.6,3101.1,3.22464]
[1738156948557,3.22405,3101.7,3101.2,0.8273]
[1738156948760,3.22414,3101.6,3101.2,0.8273]
[1738156949172,3.22398,3101.8,3101.2,4.457056]
[1738156949540,3.7801,3101.9,3101.2,4.457056]
[1738156949748,3.22398,3101.8,3101.2,4.457056]
[1738156949966,3.22398,3101.8,3101.2,7.69779039]
[1738156950149,3.22398,3101.8,3101.2,7.681526]
[1738156950349,3.22398,3101.8,3101.2,4.456976]
[1738156950569,3.22417,3101.6,3101.2,1.232506]
[1738156950871,3.22441,3101.4,3100.9,0.8241]
[1738156951369,3.0,3101.9,3100.9,0.8241]
[1738156951543,3.22495,3100.9,3100.2,0.7939]
[1738156951743,3.22494,3100.9,3100.3,3.22544]
[1738156951945,3.22494,3100.9,3100.4,3.22533]
[1738156952131,6.44988,3100.9,3100.3,3.22544]
[1738156952334,3.22494,3100.9,3100.3,3.22544]
[1738156952536,3.22494,3100.9,3100.4,0.4421294]
[1738156952772,4.0099,3101.1,3100.4,0.4421294]
[1738156952773,3.2247,3101.1,3100.4,0.4421294]
[1738156953003,3.22505,3100.8,3100.3,0.01628619]
[1738156953138,3.22508,3100.7,3100.2,0.7939]
[1738156953845,3.22508,3100.7,3100.2,4.01942]
[1738156954046,6.44985,3100.9,3100.3,3.22549]
[1738156954251,3.22509,3100.7,3100.2,0.7939]
[1738156954448,0.752,3101.0,3100.2,0.7939]
[1738156954449,3.2655257,3100.6,3100.2,0.7939]
[1738156954775,3.22545,3100.4,3100.2,0.7939]
[1738156954976,3.22524,3100.6,3100.0,4.02559]
[1738156955176,3.22509,3100.7,3100.1,3.96875501]
[1738156955679,3.22509,3100.7,3100.1,3.95239184]
[1738156955878,3.22509,3100.7,3100.2,3.22557]
[1738156956074,3.22509,3100.7,3100.2,3.31396995]
[1738156956461,3.22509,3100.7,3100.2,0.07210821]
[1738156956661,3.22509,3100.7,3100.2,0.55453822]
[1738156957585,0.04031551,3100.6,3100.2,0.07210821]
[1738156957889,3.22535,3100.5,3100.2,0.07210821]
[1738156958185,3.22535,3100.5,3100.0,0.7998]
[1738156958391,3.22535,3100.5,3100.3,0.07205863]
[1738156958548,3.22535,3100.5,3100.0,0.7998]
[1738156958745,3.22535,3100.5,3100.4,0.07200907]
[1738156959060,3.22535,3100.5,3100.0,4.02558]
[1738156959262,3.22535,3100.5,3100.4,0.07200907]
[1738156959585,3.22586,3100.0,3099.4,4.02967]
[1738156959786,3.22601,3099.8,3099.4,0.8033]
[1738156960086,3.22659,3099.3,3098.7,3.22708]
[1738156960382,0.84542596,3099.7,3098.7,0.78666569]
[1738156960383,3.26703276,3099.2,3098.7,0.78666569]
[1738156960570,3.22685,3099.0,3098.6,0.8033]
[1738156960769,0.04033464,3099.1,3098.6,0.8033]
[1738156960770,3.22681,3099.1,3098.6,0.8033]
[1738156961171,3.2267,3099.2,3098.6,0.8033]
[1738156961374,3.22705,3098.8,3098.3,2.92549219]
[1738156961689,3.22705,3098.8,3098.2,0.8045]
[1738156961984,3.22701,3098.9,3098.3,3.22753]
[1738156962214,0.7888,3099.0,3098.2,1.50101922]
[1738156962354,3.22722,3098.7,3098.2,1.50101922]
[1738156962549,3.26763077,3098.6,3097.9,4.0324]
[1738156963092,3.22741,3098.5,3098.0,3.22787]
[1738156963275,3.22741,3098.5,3097.9,7.2603]
[1738156963476,3.22741,3098.5,3097.9,4.0324]
[1738156963657,3.22741,3098.5,3098.0,3.22786]
[1738156964452,3.22741,3098.5,3098.0,3.95553907]
[1738156964789,3.22741,3098.5,3098.0,0.72767907]
[1738156965086,3.22741,3098.5,3097.6,3.60187859]
[1738156965087,4.05284,3098.3,3097.6,3.22825]
[1738156965386,3.22779,3098.1,3097.5,0.0075]
[1738156965689,3.22779,3098.1,3097.5,3.22832]
[1738156966278,3.22779,3098.1,3097.6,3.2283]
[1738156966578,3.2281,3097.8,3097.3,2.555]
[1738156966890,3.22792,3098.0,3097.3,5.78359]
[1738156967052,3.26835312,3097.9,3097.3,6.768269]
[1738156967252,0.04035312,3097.9,3097.1,0.005]
[1738156967453,3.22803,3097.9,3097.1,3.23374]
[1738156967668,3.2282,3097.7,3097.1,3.23374]
[1738156967988,3.2282,3097.7,3097.1,0.005]
[1738156967989,3.22849,3097.5,3097.1,0.005]
[1738156968163,0.0403586,3097.4,3097.1,0.005]
[1738156968767,3.22842,3097.5,3097.1,0.005]
[1738156968975,0.04035859,3097.4,3097.1,0.005]
[1738156969395,3.22842,3097.5,3097.1,0.005]
[1738156969752,0.04035859,3097.6,3097.1,0.005]
[1738156970350,3.26870859,3097.6,3097.1,0.005]
[1738156970993,0.04035859,3097.6,3097.2,0.06704631]
[1738156971294,3.22842,3097.5,3097.2,0.06704631]
[1738156971461,3.22861,3097.3,3097.2,0.06704631]
[1738156975476,6.98971,3097.3,3097.2,0.06704631]
[1738156975896,6.22872,3097.2,3097.1,0.005]
[1738156976403,7.02892,3097.2,3097.1,0.005]
[1738156976578,3.22861,3097.3,3096.3,0.23024871]
[1738156976906,3.0,3096.8,3096.4,3.22954]
[1738156977104,3.0,3096.8,3096.4,3.29574355]
[1738156977399,3.0,3096.8,3096.4,0.06620355]
[1738156977593,3.22915,3096.8,3096.4,0.06620355]
[1738156978391,3.0,3096.8,3096.4,0.06620355]
[1738156978905,3.65725484,3096.8,3096.4,0.06620355]
[1738156979982,6.92678158,3096.8,3096.4,0.06620355]
[1738156980293,3.65725484,3096.8,3096.4,0.06620355]
[1738156980489,3.69762157,3096.8,3096.4,0.06620355]
[1738156980724,3.22893,3097.0,3096.5,3.22944]
[1738156981005,3.22831,3097.6,3096.5,3.22944]
[1738156981006,4.6502756,3097.7,3097.1,3.22876]
[1738156981202,0.26075341,3099.0,3097.1,3.22876]
[1738156981203,0.7909,3098.0,3097.3,3.22858]
[1738156981409,0.401874,3097.9,3097.4,3.22841]
[1738156981566,3.22797,3098.0,3097.5,3.2284]
[1738156981772,0.64769007,3098.0,3097.6,3.22827]
[1738156981972,3.22774,3098.2,3097.7,0.7523]
[1738156982210,3.22774,3098.2,3097.7,0.81767986]
[1738156982367,3.22779,3098.1,3097.7,0.81767986]
[1738156982777,3.98923,3098.3,3097.7,0.81767986]
[1738156983005,3.22797,3098.0,3097.7,0.81767986]
[1738156983910,3.22784,3098.1,3097.7,0.81767986]
[1738156984315,6.45571,3098.1,3097.7,0.81767986]
[1738156984715,0.7988,3098.7,3097.7,0.81767986]
[1738156984874,3.22736,3098.5,3097.9,3.22789]
[1738156985076,3.22731,3098.6,3098.0,3.22785]
[1738156985384,3.22724,3098.7,3098.0,6.52060665]
[1738156985594,3.22709,3098.8,3098.0,3.29275665]
[1738156985791,3.22717,3098.7,3098.2,3.22766]
[1738156986013,3.86811593,3098.8,3098.2,3.22766]
[1738156986180,3.22707,3098.8,3098.3,0.829245]
[1738156986527,4.0207,3099.0,3098.4,3.22742]
[1738156986701,3.22695,3098.9,3098.3,0.829245]
[1738156986905,3.22711,3098.8,3098.5,0.06454574]
[1738156987124,3.22722,3098.7,3098.4,0.06459537]
[1738156987344,3.22722,3098.7,3098.6,0.06449611]
[1738156987566,3.22726,3098.6,3097.8,4.02197]
[1738156987721,3.22726,3098.6,3097.9,3.22799]
[1738156987926,4.66811088,3099.0,3097.8,4.02197]
[1738156987927,3.22711,3098.8,3098.2,3.22766]
[1738156988130,3.22711,3098.8,3098.2,3.22761]
[1738156988327,4.02066,3099.0,3098.2,0.64717429]
[1738156988531,4.02066,3099.0,3098.4,3.22741]
[1738156988532,3.22686,3099.0,3098.4,3.22741]
[1738156988909,6.45381,3099.0,3098.4,3.22741]
[1738156989311,6.86336343,3099.2,3098.5,3.22729]
[1738156989608,3.0,3099.1,3098.5,3.22729]
[1738156989921,3.0,3099.2,3098.7,3.22712]
[1738156990453,3.26708855,3099.1,3098.5,3.22734]
[1738156990773,3.22692,3099.0,3098.4,3.22747]
[1738156991546,3.26728905,3098.9,3098.4,3.22747]
[1738156991848,3.22695,3098.9,3098.4,3.22747]
[1738156992062,3.22687,3099.0,3098.4,3.22747]
[1738156992355,3.26720905,3099.0,3098.4,3.22747]
[1738156992716,3.22687,3099.0,3098.4,3.22747]
[1738156992912,3.26736905,3098.9,3098.3,0.7719]
[1738156993113,3.26736905,3098.9,3098.0,3.2278]
[1738156993114,3.22742,3098.5,3098.0,0.8025]
[1738156993366,6.45486,3098.5,3098.0,0.8025]
[1738156993657,0.7916,3098.9,3098.0,0.8025]
[1738156993812,3.22726,3098.6,3098.1,3.2277]
[1738156994011,3.22726,3098.6,3098.0,0.8025]
[1738156994557,3.22709,3098.8,3098.2,3.22766]
[1738156994747,6.22697,3098.9,3098.3,3.22751]
[1738156995320,3.22712,3098.8,3098.1,3.22773]
[1738156995560,3.22725,3098.7,3098.1,3.22773]
[1738156996076,6.22701,3098.9,3098.3,3.22749]
[1738156996259,3.65407042,3099.0,3098.4,3.22737]
[1738156996460,3.22695,3098.9,3098.4,3.22737]
[1738156997037,3.22724,3098.7,3098.1,0.55]
[1738156997274,3.22724,3098.7,3098.1,3.77773]
[1738156997571,3.22727,3098.6,3098.1,3.77773]
[1738156997777,3.88098042,3099.0,3098.5,3.22736]
[1738156998082,3.22554,3100.3,3098.5,3.22736]
[1738156998083,4.517249,3099.9,3099.3,4.03143]
[1738156998323,1.291339,3099.9,3099.5,3.22626]
[1738156998467,3.22572,3100.1,3099.5,3.22622]
[1738156998633,3.22572,3100.1,3099.5,6.45248]
[1738156998829,0.65122916,3099.9,3099.3,3.22646]
[1738156999150,0.65122916,3099.9,3099.5,3.22632]
[1738156999333,3.628562,3100.0,3099.3,6.45289]
[1738156999896,0.402722,3100.0,3099.0,0.5575]
[1738157000059,3.26627644,3099.9,3099.3,3.22644]
[1738157000395,3.26627644,3099.9,3099.1,3.22666]
[1738157000396,3.22611,3099.7,3099.1,3.22666]
[1738157000601,3.22611,3099.7,3099.0,0.0075]
[1738157000602,3.22629,3099.6,3099.0,0.0075]
[1738157000896,3.22643,3099.4,3098.9,4.00056]
[1738157001047,3.22625,3099.6,3099.1,0.06010946]
[1738157001391,3.548965,3099.5,3099.2,0.06008519]
[1738157001839,3.548965,3099.5,3099.0,3.24316387]
[1738157002040,6.88765883,3100.0,3099.3,0.06003559]
[1738157002041,3.88763883,3100.0,3099.3,0.06003559]
[1738157002469,3.22607,3099.8,3099.1,3.22664]
[1738157002665,3.22615,3099.7,3099.4,0.06004174]
[1738157002840,3.22615,3099.7,3099.1,6.4533]
[1738157003041,3.22615,3099.7,3099.5,0.05998708]
[1738157003310,3.22615,3099.7,3099.2,3.22655]
[1738157003445,3.22615,3099.7,3099.6,0.05993748]
[1738157003644,0.66181883,3100.0,3099.6,0.82173748]
[1738157003956,3.22544,3100.4,3099.8,3.22593]
[1738157004143,3.22552,3100.3,3099.7,0.05983214]
[1738157004341,3.22567,3100.2,3099.9,0.05971269]
[1738157004569,3.22567,3100.2,3099.8,0.05976228]
[1738157004779,3.22567,3100.2,3099.9,0.05970255]
[1738157006799,3.22586,3100.0,3099.7,0.0596953]
[1738157007491,3.22561,3100.2,3099.7,3.2858053]
[1738157007927,3.22561,3100.2,3099.7,0.0596953]
[1738157008133,3.22561,3100.2,3099.7,3.2857853]
[1738157008506,6.4509,3100.4,3099.8,3.22598]
[1738157008697,3.22552,3100.3,3099.8,3.22598]
[1738157008896,6.22499,3100.8,3099.8,3.22598]
[1738157008897,0.7899,3100.9,3100.1,3.22565]
[1738157009103,3.22497,3100.8,3100.3,4.04831]
[1738157009455,0.7899,3100.9,3099.2,2.0]
[1738157009456,3.22653,3099.3,3099.2,2.0]
[1738157009655,3.2263,3099.6,3098.5,2.0]
[1738157009832,3.22693,3099.0,3098.0,8.15887859]
[1738157010151,0.04033616,3098.9,3098.0,5.60187859]
[1738157010334,3.22656,3099.3,3098.3,0.01633317]
[1738157010536,0.7899,3099.8,3099.2,3.22659]
[1738157010537,4.01594,3099.8,3099.2,3.22659]
[1738157010699,3.22576,3100.1,3099.4,3.22636]
[1738157010903,3.22555,3100.3,3099.7,3.22609]
[1738157011454,0.65851138,3100.4,3099.8,0.01630717]
[1738157011602,0.7907,3100.8,3100.2,3.22558]
[1738157011802,0.7907,3100.8,3100.2,3.22551]
[1738157012050,4.01568,3100.8,3100.2,3.22551]
[1738157012247,4.01568,3100.8,3100.3,3.2254]
[1738157012248,0.7907,3100.8,3100.3,3.2254]
[1738157012757,0.7907,3100.8,3100.2,3.22557]
[1738157012896,0.7907,3100.8,3100.2,3.22552]
[1738157013103,4.01568,3100.8,3100.2,3.22552]
[1738157013300,3.2253,3100.5,3100.1,0.7935]
[1738157013517,6.45025,3100.7,3100.1,0.7935]
[1738157013717,3.22519,3100.6,3100.1,0.7935]
[1738157013916,3.22509,3100.7,3100.1,0.7935]
[1738157014117,6.45024,3100.7,3100.1,4.01919]
[1738157014336,3.22509,3100.7,3100.0,3.22578]
[1738157014635,3.22518,3100.6,3100.0,3.22578]
[1738157014952,3.22518,3100.6,3100.0,6.4515]
[1738157015464,3.22523,3100.6,3100.0,3.22572]
[1738157015668,0.7907,3100.8,3100.3,3.22548]
[1738157016467,0.04031614,3100.7,3100.2,3.22558]
[1738157017182,4.01569,3100.8,3100.3,0.05704577]
[1738157017383,0.04031614,3100.7,3100.3,0.05704577]
[1738157017584,0.04031614,3100.7,3100.2,3.22558]
[1738157017885,4.01569,3100.8,3100.3,3.28252577]
[1738157018353,4.05600613,3100.8,3100.3,3.28252577]
[1738157018551,0.7907,3100.8,3100.3,6.50800577]
[1738157018737,0.7907,3100.8,3100.3,3.28252577]
[1738157019138,4.01574,3100.8,3100.3,0.05704577]
[1738157019454,4.05605612,3100.8,3100.2,3.22558]
[1738157019656,4.05605612,3100.8,3100.4,0.0569962]
[1738157019864,4.05605612,3100.8,3100.3,0.05704577]
[1738157020070,0.7907,3100.8,3100.5,0.05694663]
[1738157020277,0.7907,3100.8,3100.4,0.0569962]
[1738157020486,3.22508,3100.7,3100.6,0.05663868]
[1738157020701,3.22508,3100.7,3100.5,0.05668824]
[1738157020976,3.22508,3100.7,3100.6,0.05663361]
[1738157021346,0.7907,3100.8,3100.3,3.22547]
[1738157021550,4.01573,3100.8,3100.3,3.22547]
[1738157021754,4.01573,3100.8,3100.4,0.05669728]
[1738157021964,4.01571,3100.8,3100.3,3.22542]
[1738157022166,4.01571,3100.8,3100.4,0.05669222]
[1738157022376,3.22509,3100.7,3100.4,0.05669222]
[1738157022562,3.22509,3100.7,3100.2,3.22552]
[1738157022878,3.22509,3100.7,3100.3,0.05674179]
[1738157023079,0.8246,3101.2,3100.6,3.22514]
[1738157023446,0.63726248,3101.8,3101.3,3.22439]
[1738157023599,0.8246,3101.9,3101.5,3.22423]
[1738157023754,0.404825,3101.9,3101.7,3.22403]
[1738157023958,0.64842781,3101.9,3101.8,3.27981396]
[1738157024295,0.0402978,3102.1,3101.8,0.05589396]
[1738157024719,0.0402978,3102.1,3101.6,3.22408]
[1738157025202,0.0402978,3102.1,3101.7,0.0553224]
[1738157025398,3.2639278,3102.1,3101.7,0.0553224]
[1738157025553,3.22383,3101.9,3101.7,0.0553224]
[1738157025955,3.63258278,3102.0,3101.5,3.22423]
[1738157026185,3.63259278,3102.0,3101.4,3.22434]
[1738157026392,3.63259278,3102.0,3101.5,0.05522409]
[1738157027668,0.40885278,3102.0,3101.5,0.05522409]
[1738157027878,0.36324828,3101.9,3101.5,3.27941409]
[1738157028303,0.36324828,3101.9,3101.5,0.05522409]
[1738157028722,0.36324828,3101.9,3101.5,3.27944409]
[1738157030428,0.36324828,3101.9,3101.5,0.05522409]
[1738157031529,3.58709828,3101.9,3101.5,0.05522409]
[1738157031734,3.22414,3101.6,3101.5,0.05522409]
[1738157031930,3.22448,3101.3,3100.6,3.22513]
[1738157032108,0.04030969,3101.2,3100.7,3.225]
[1738157032309,3.22448,3101.3,3100.7,3.27794931]
[1738157032495,0.04030969,3101.2,3100.7,3.27794931]
[1738157032831,3.22448,3101.3,3100.8,3.22495]
[1738157033330,3.22448,3101.3,3100.9,0.05297657]
[1738157033821,0.04030968,3101.2,3100.9,0.05297657]
[1738157035234,0.85780968,3101.2,3100.9,0.05297657]
[1738157035428,3.22476,3101.0,3100.4,3.22536]
[1738157035733,3.22476,3101.0,3100.5,3.22528]
[1738157035899,0.8175,3101.2,3100.9,3.22484]
[1738157036108,3.22441,3101.4,3100.9,3.22484]
[1738157036539,0.8267,3101.5,3101.0,3.2247]
[1738157036712,6.448,3101.8,3101.2,3.22453]
[1738157036913,3.22399,3101.8,3101.2,3.22453]
[1738157037250,3.22406,3101.7,3101.2,3.22454]
[1738157038042,3.22417,3101.6,3101.1,3.22457]
[1738157038202,3.26457589,3101.5,3100.9,3.98809]
[1738157038540,3.22427,3101.5,3101.0,3.22474]
[1738157038745,3.22435,3101.4,3100.9,3.98814]
[1738157039341,3.22448,3101.3,3100.9,0.7633]
[1738157040009,6.44859,3101.5,3100.9,3.98814]
[1738157040222,3.22436,3101.4,3100.9,3.98814]
[1738157040419,0.64220567,3101.7,3100.5,1.3678]
[1738157040750,0.7935,3101.2,3100.3,3.2254]
[1738157040919,3.22492,3100.9,3100.2,0.8178]
[1738157041247,0.32652344,3100.9,3100.5,3.22522]
[1738157041446,3.22469,3101.1,3100.5,3.22522]
[1738157041657,3.22451,3101.3,3100.6,3.24895624]
[1738157041858,3.22451,3101.3,3100.6,3.23267]
[1738157042059,3.22451,3101.3,3100.8,3.22495]
[1738157043323,3.99018,3101.5,3100.4,3.22531]
[1738157043324,3.26490807,3101.2,3100.4,3.22531]
[1738157043574,0.7982,3100.9,3100.2,0.8178]
[1738157043774,3.22532,3100.5,3099.9,3.22581]
[1738157043995,3.22532,3100.5,3099.9,3.22585]
[1738157044363,3.22546,3100.4,3099.8,3.22597]
[1738157044798,3.22546,3100.4,3099.7,3.22605]
[1738157045006,3.22546,3100.4,3099.9,3.22587]
[1738157045589,3.22513,3100.7,3100.1,3.22563]
[1738157045817,0.402311,3100.8,3100.2,3.22559]
[1738157045965,3.627351,3100.8,3100.2,3.22559]
[1738157046172,3.627351,3100.8,3100.2,3.27918072]
[1738157046697,3.22517,3100.7,3100.2,0.05359072]
[1738157046877,3.68123275,3100.7,3100.2,0.05359072]
[1738157047807,4.02308,3100.9,3100.4,3.22535]
[1738157048179,3.22497,3100.8,3100.5,0.55]
[1738157048511,3.22497,3100.8,3100.5,0.60344202]
[1738157049490,0.83851391,3100.9,3100.5,0.60344202]
[1738157049491,3.22513,3100.7,3100.5,0.60344202]
[1738157049970,3.26544392,3100.7,3100.5,0.05344202]
[1738157050178,3.55172439,3100.6,3099.9,3.22589]
[1738157050397,0.32654439,3100.6,3100.1,0.55]
[1738157050597,0.32654439,3100.6,3100.2,0.05387398]
[1738157050911,3.22535,3100.5,3100.2,0.05387398]
[1738157051212,3.2657791,3100.4,3100.2,0.05387398]
[1738157051368,3.22546,3100.4,3100.2,0.05387398]
[1738157051568,3.22546,3100.4,3099.9,3.22591]
[1738157051774,3.22546,3100.4,3100.0,0.55]
[1738157051975,3.22546,3100.4,3100.0,0.60397313]
[1738157052914,3.22528,3100.5,3100.0,0.60397313]
[1738157053212,3.22528,3100.5,3100.0,3.82971313]
[1738157053524,3.75719936,3100.5,3100.0,0.60397313]
[1738157053697,0.0075,3101.0,3100.0,0.05397313]
[1738157053898,0.5575,3101.6,3099.2,3.22658]
[1738157053899,0.1,3101.2,3099.2,3.22658]
[1738157054117,0.1,3101.2,3099.0,3.22678]
[1738157054118,3.22628,3099.6,3099.0,3.22678]
[1738157054416,3.22619,3099.7,3099.2,0.55]
[1738157054643,0.02401924,3099.6,3098.4,2.92266944]
[1738157054837,0.02401924,3099.6,3097.6,2.0]
[1738157054838,3.22663,3099.2,3099.1,0.05472345]
[1738157055011,3.22717,3098.7,3098.2,4.03682]
[1738157055211,3.22696,3098.9,3098.2,4.03682]
[1738157055546,3.22705,3098.8,3098.3,0.403682]
[1738157055841,3.22737,3098.5,3098.3,0.403682]
[1738157056091,3.22737,3098.5,3097.9,3.22794]
[1738157056092,0.02401924,3098.4,3097.9,3.22794]
[1738157056203,3.2275,3098.4,3097.9,3.22794]
[1738157056404,3.2275,3098.4,3097.8,0.75]
[1738157056405,3.25160924,3098.3,3097.8,0.75]
[1738157056605,3.25174924,3098.2,3097.8,0.75]
[1738157056951,3.22773,3098.2,3097.8,0.75]
[1738157057254,3.22773,3098.2,3097.4,2.555]
[1738157057255,0.02401924,3098.3,3097.4,3.3285]
[1738157057547,3.22798,3098.0,3097.5,0.655706]
[1738157057836,3.22731,3098.6,3097.5,0.655706]
[1738157057837,3.2273,3098.6,3097.7,0.55]
[1738157058040,3.22748,3098.4,3097.5,3.884086]
[1738157058337,0.7731,3098.1,3097.4,2.555]
[1738157058549,3.22799,3097.9,3097.1,3.22881]
[1738157058717,3.22835,3097.6,3096.7,4.43719]
[1738157058903,3.22831,3097.6,3097.0,3.22891]
[1738157059106,3.22831,3097.6,3097.1,0.322891]
[1738157059746,3.22831,3097.6,3097.0,3.22885]
[1738157059944,3.22831,3097.6,3096.7,0.797]
[1738157059945,0.7731,3098.1,3096.8,0.03228753]
[1738157060253,3.22836,3097.6,3096.7,0.797]
[1738157060455,0.7731,3098.1,3096.9,0.5575]
[1738157060607,3.22804,3097.9,3097.2,3.22863]
[1738157060809,3.25205924,3097.9,3097.2,3.551493]
[1738157061043,3.22804,3097.9,3097.3,3.28185887]
[1738157061430,3.22822,3097.7,3097.3,0.05325887]
[1738157061634,3.22841,3097.5,3097.3,0.05325887]
[1738157061927,3.22841,3097.5,3096.9,3.77896]
[1738157062129,3.22841,3097.5,3097.4,0.05321932]
[1738157062443,3.2283,3097.6,3097.4,0.05321932]
[1738157062644,3.2283,3097.6,3096.8,3.2291]
[1738157062645,3.22852,3097.4,3096.8,3.2291]
[1738157062804,0.02401924,3097.3,3096.8,3.2291]
[1738157063003,0.02401924,3097.3,3096.4,4.43230423]
[1738157063004,3.22895,3097.0,3096.4,4.43230423]
[1738157063205,3.25306924,3096.9,3096.4,0.43311423]
[1738157063450,0.02401924,3096.9,3096.3,0.23024871]
[1738157063748,3.22904,3096.9,3096.3,3.45989871]
[1738157063937,3.229,3097.0,3096.3,3.45989871]
[1738157064307,3.99433,3096.9,3096.3,0.23024871]
[1738157064506,0.02401924,3096.8,3096.3,0.23024871]
[1738157064753,3.22916,3096.8,3096.3,0.23024871]
[1738157065120,1.41427307,3096.9,3096.3,0.23024871]
[1738157065444,3.22924,3096.7,3096.3,0.23024871]
[1738157066248,0.02401924,3096.8,3096.3,0.23024871]
[1738157066451,3.22883,3097.1,3096.4,0.55]
[1738157066612,4.47183204,3097.2,3096.4,3.77953]
[1738157066813,3.25290924,3097.1,3096.4,3.77953]
[1738157067008,3.25290924,3097.1,3096.5,3.22945]
[1738157067244,3.22889,3097.1,3096.4,3.77953]
[1738157067451,3.22889,3097.1,3096.5,3.22944]
[1738157067751,3.22889,3097.1,3096.4,3.77953]
[1738157067953,3.229,3097.0,3096.4,3.77953]
[1738157068318,0.02401924,3097.1,3096.4,3.77953]
[1738157068519,0.02401924,3097.1,3096.5,3.22942]
[1738157068748,3.22885,3097.1,3096.4,0.55]
[1738157069050,3.25286924,3097.1,3096.4,3.77948]
[1738157069351,3.25286924,3097.1,3096.4,4.50665315]
[1738157069557,3.22894,3097.0,3096.4,4.50665315]
[1738157069716,0.02401924,3096.9,3096.4,3.77948]
[1738157070317,3.22894,3097.0,3096.4,3.77948]
[1738157070517,3.22885,3097.1,3096.4,3.22948]
[1738157070843,3.22894,3097.0,3096.5,0.55]
[1738157071039,3.25305924,3096.9,3096.4,0.55]
[1738157071219,3.25305924,3096.9,3096.3,0.23024871]
[1738157071220,3.25309924,3096.9,3096.3,0.23024871]
[1738157071419,3.22931,3096.7,3096.3,0.23024871]
[1738157071743,0.02401924,3096.8,3096.3,0.23024871]
[1738157072138,3.22924,3096.7,3096.3,0.23024871]
[1738157072343,0.02401924,3096.6,3096.3,0.23024871]
[1738157072745,3.22906,3096.9,3096.3,0.23024871]
[1738157073146,6.45819,3096.9,3096.3,0.23024871]
[1738157073340,3.22906,3096.9,3096.3,0.23024871]
[1738157073541,3.22915,3096.8,3096.3,0.23024871]
[1738157073777,3.22858,3097.4,3096.9,0.55]
[1738157073995,3.22851,3097.4,3096.9,0.55]
[1738157074146,3.22868,3097.3,3096.7,0.55]
[1738157074353,3.2291,3096.9,3096.4,0.8109]
[1738157074546,4.02096,3097.0,3096.4,0.8109]
[1738157074746,3.22914,3096.8,3096.4,0.8109]
[1738157074986,3.22914,3096.8,3096.3,0.23024871]
[1738157075291,3.25326924,3096.7,3096.4,0.55]
[1738157075585,3.22914,3096.8,3096.4,0.55]
[1738157075793,3.22875,3097.2,3096.4,0.95099887]
[1738157075976,3.22883,3097.1,3096.6,0.55]
[1738157076360,3.22875,3097.2,3096.7,0.05353991]
[1738157076565,3.22875,3097.2,3096.7,0.85653991]
[1738157076770,3.22879,3097.2,3096.7,0.85653991]
[1738157076966,3.22879,3097.2,3096.8,0.55]
[1738157077282,3.22843,3097.5,3097.0,0.55]
[1738157077590,3.22823,3097.7,3097.2,3.22871]
[1738157077790,3.22798,3098.0,3097.5,0.55]
[1738157077976,3.2281,3097.8,3097.3,0.82824185]
[1738157078180,3.25221924,3097.7,3097.6,0.05304222]
[1738157078497,3.22861,3097.4,3096.8,3.26134641]
[1738157078694,3.22861,3097.4,3096.9,0.55]
[1738157078866,3.22861,3097.4,3096.9,0.60338989]
[1738157079407,0.82,3097.6,3096.9,3.83239989]
[1738157079566,3.22837,3097.6,3097.0,0.7918]
[1738157079883,3.22815,3097.8,3097.3,0.55]
[1738157080087,3.22815,3097.8,3097.2,0.55]
[1738157080088,3.22832,3097.6,3097.2,0.55]
[1738157080391,3.22822,3097.7,3097.4,0.05295415]
[1738157080570,3.22815,3097.8,3097.3,0.05300382]
[1738157080768,3.22823,3097.7,3097.5,0.05289943]
[1738157081094,3.22823,3097.7,3097.6,0.0528447]
[1738157081339,3.22804,3097.9,3097.6,0.0528447]
[1738157081627,3.2282,3097.7,3097.2,3.77864]
[1738157081922,3.22805,3097.9,3097.5,0.55]
[1738157082127,3.22836,3097.6,3097.2,0.46027245]
[1738157082285,3.22838,3097.6,3097.2,0.46027245]
[1738157083221,3.22882,3097.1,3096.5,0.829]
[1738157083527,6.45795,3097.0,3096.5,0.829]
[1738157083727,3.22895,3097.0,3096.6,0.55]
[1738157084134,3.22927,3096.7,3096.5,0.829]
[1738157084435,0.02401924,3096.9,3096.3,0.23024871]
[1738157084436,3.22955,3096.4,3096.3,0.23024871]
[1738157084756,4.04846924,3096.4,3096.3,0.23024871]
[1738157085887,4.02445,3096.4,3096.3,0.23024871]